{"text_format":"1","workbook":"xlsx","n_sheets":7,"sheets":["NOSITELJ","MANIFESTACIJA","FINANCIJE","OSTALO","SVE","OSNOVNO","TMP"],"not_rendered":{"charts":0,"images":4,"macros":1,"external_links":0,"defined_names":6,"comments":0,"pivot_tables":0},"unopened":[],"bounds":{"document_bytes":16777216,"sheet_cells":100000,"rows_first":2000,"rows_last":500,"rows_between":2000,"halvings":0,"cell_chars":16384,"cell_head_chars":4096},"cells_cut":0,"cells_raw":0,"read":"whole","date_system":"1900"}

{"sheet":"NOSITELJ","index":0,"n_rows":31,"n_cols":2,"rows_kept":31,"cut":false,"hidden":false,"merged":[[0,0,0,1],[29,0,29,1]]}
["ZAHTJEV za dodjelu potpore manifestaciji / projektu"]
["Urudžbeni br. (unosi TZ Kvarnera)"]
["Klasa","II.1.2."]
["Vrsta manifestacije / projekta"]
["Subregija "]
["Naziv manifestacije / projekta"]
["Nositelj / organizator"]
["Adresa / sjedište  i kontakt podaci nositelja / organizatora"]
["Ulica i kućni br."]
["Br. pošte"]
["Grad"]
["Telefon"]
["Fax"]
["E-mail"]
["Internet adresa"]
["Ostali podaci o nositelju/ organizatoru manifestacije"]
["OIB"]
[]
["Broj stalno zaposlenih"]
["Poslovna banka"]
["Broj žiro računa"]
["Odgovorna osoba za realizaciju "]
["Ime i prezime"]
["Funkcija"]
["Osoba za kontakt"]
["Ime i prezime"]
["Funkcija"]
["Telefon"]
["e-mail"]
["Suorganizatori"]
["Naziv","Adresa"]

{"sheet":"MANIFESTACIJA","index":1,"n_rows":34,"n_cols":2,"rows_kept":34,"cut":false,"hidden":false,"merged":[[0,0,0,1]]}
["Podaci o manifestaciji / projektu"]
["Kratki opis"]
["Uzastopno održavanje"]
["Cilj / Svrha"]
["Sadržaj / opis programa"]
["Broj izvođača"]
["Period održavanja"]
["Početak"]
["Završetak"]
["Napomena"]
["Vrijeme/faze realizacije"]
["Vrijeme trajanja","Faza"]
[]
[]
[]
[]
[]
[]
[]
[]
[]
[]
[]
[]
[]
[]
[]
["Očekivani rezultati / efekti"]
["Broj turista / posjetilaca"]
["Povećanje prometa u smještajnim objektima"]
["Povećanje prometa u ugostiteljstvu i trgovini"]
["ostalo"]
["Ukupan iznos potrebnih sredstava za realizaciju manifestacije / projekta"]
["Traženi iznos potpore od TZ Kvarnera"]

{"sheet":"FINANCIJE","index":2,"n_rows":47,"n_cols":2,"rows_kept":47,"cut":false,"hidden":false,"merged":[[0,0,0,1],[34,0,34,1],[23,0,23,1]]}
["Financijski plan /plan troškova manifestacije / projekta"]
["Vrsta i sadržaj troška","Iznos u kn"]
[]
[]
[]
[]
[]
[]
[]
[]
[]
[]
["UKUPNI TROŠKOVI REALIZACIJE     ",{"$f":"SUM(B3:B12)","v":0}]
["Izvori financiranja manifestacije / projekta - iznos u kn"]
["Vlastita sredstva nositelja/organizatora"]
["Uložena sredstva suorganizatora"]
["Suorganizator (prethodno naveden)","Iznos u kn"]
[{"$f":"IF(NOSITELJ!A32<>\"\",NOSITELJ!A32,\"\")","v":""}]
[{"$f":"IF(NOSITELJ!A33<>\"\",NOSITELJ!A33,\"\")","v":""}]
[{"$f":"IF(NOSITELJ!A34<>\"\",NOSITELJ!A34,\"\")","v":""}]
["UKUPNO SUORGANIZATORI  ",{"$f":"SUM(B18:B20)","v":0}]
["Uložena sredstva lokalne turističke zajednice\n"]
["Uložena sredstva  HTZ "]
["Uložena sredstva gospodarskih i drugih subjekata"]
["Izvor sredstava","Iznos u kn"]
[]
[]
[]
[]
[]
[]
[]
[]
["UKUPNO GOSPODARSKI I DR. SUBJEKTI  ",{"$f":"SUM(B26:B33)","v":0}]
["Sredstva državne potpore koje je nositelj manifestacije dobio od drugih davatelja"]
["Davatelj državne potpore","Iznos u kn"]
[]
[]
[]
[]
[]
[]
[]
[]
[]
[]
["UKUPNO DAVATELJI DRŽAVNE POTPORE  ",{"$f":"SUM(B37:B46)","v":0}]

{"sheet":"OSTALO","index":3,"n_rows":20,"n_cols":2,"rows_kept":20,"cut":false,"hidden":false,"merged":[[7,0,7,1],[8,0,8,1]]}
["Dokumentacija potrebna za kandidiranje (označiti dokumente koje prilažete)"]
["Pisana suglasnost / preporuka lokalne TZ na kojoj se manifestacija / projekt odvija",false]
["Potvrda nadležne Porezne uprave o nepostojanju duga organizatora prema državi",false]
[1]
["Napomena uz zahtjev"]
[1]
["Napomena"]
["1) Uz Zahtjev je potrebno priložiti  i cjelokupnu dokumentaciju navedenu u Javnom pozivu."]
["2) Nepotpuni zahtjevi neće se razmatrati."]
[1]
["Mjesto"]
["Datum"]
["Odgovorna osoba nositelja / organizatora za realizaciju manifestacije / projekta"]
["Ime i prezime "]
["Funkcija"]
[1]
[1]
["Potpis"]
[1]
["Žig"]

{"sheet":"SVE","index":4,"n_rows":132,"n_cols":2,"rows_kept":132,"cut":false,"hidden":true,"merged":[]}
["Urudžbeni br.",{"$f":"NOSITELJ!B2","v":0}]
["Klasa",{"$f":"NOSITELJ!B3","v":"II.1.2."}]
["Vrsta manifestacije / projekta",{"$f":"NOSITELJ!B4","v":0}]
["Subregija ",{"$f":"NOSITELJ!B5","v":0}]
["Naziv manifestacije / projekta",{"$f":"NOSITELJ!B6","v":0}]
["Nositelj / organizator",{"$f":"NOSITELJ!B7","v":0}]
["Nositelj - Ulica i kućni br.",{"$f":"NOSITELJ!B9","v":0}]
["Nositelj - Br. pošte",{"$f":"NOSITELJ!B10","v":0}]
["Nositelj - Grad",{"$f":"NOSITELJ!B11","v":0}]
["Nositelj - Telefon",{"$f":"NOSITELJ!B12","v":0}]
["Nositelj - Fax",{"$f":"NOSITELJ!B13","v":0}]
["Nositelj - E-mail",{"$f":"NOSITELJ!B14","v":0}]
["Nositelj - web",{"$f":"NOSITELJ!B15","v":0}]
["Nositelj - OIB",{"$f":"NOSITELJ!B17","v":0}]
["Nositelj - Broj stalno zaposlenih",{"$f":"NOSITELJ!B19","v":0}]
["Nositelj - Poslovna banka",{"$f":"NOSITELJ!B20","v":0}]
["Nositelj - Broj žiro računa",{"$f":"NOSITELJ!B21","v":0}]
["Odgovorna osoba - Ime i prezime",{"$f":"NOSITELJ!B23","v":0}]
[" Odgovorna osoba - Funkcija",{"$f":"NOSITELJ!B24","v":0}]
["Kontakt - Ime i prezime",{"$f":"NOSITELJ!B26","v":0}]
["Kontakt - Funkcija",{"$f":"NOSITELJ!B27","v":0}]
["kontakt - Telefon",{"$f":"NOSITELJ!B28","v":0}]
["Kontakt  - E-mail",{"$f":"NOSITELJ!B29","v":0}]
["Suorganizator 1",{"$f":"NOSITELJ!A32","v":0}]
["Adresa Suorganizator 1",{"$f":"NOSITELJ!B32","v":0}]
["Suorganizator 2",{"$f":"NOSITELJ!A33","v":0}]
["Adresa Suorganizator 2",{"$f":"NOSITELJ!B33","v":0}]
["Suorganizator 3",{"$f":"NOSITELJ!A34","v":0}]
["Adresa Suorganizator 3",{"$f":"NOSITELJ!B34","v":0}]
["Uzastopno održavanje manifestacije",{"$f":"MANIFESTACIJA!B3","v":0}]
["Cilj / Svrha manifestacije",{"$f":"MANIFESTACIJA!B4","v":0}]
["Opis programa Manifestacije",{"$f":"MANIFESTACIJA!B5","v":0}]
["Broj izvođača",{"$f":"MANIFESTACIJA!B6","v":0}]
["Prvi dan manifestacije",{"$f":"IF(ISBLANK(MANIFESTACIJA!B40),\"nepoznato\",MANIFESTACIJA!B40)","v":"nepoznato"}]
["Posljednji dan manifestacije",{"$f":"IF(ISBLANK(MANIFESTACIJA!B41),\"nepoznato\",MANIFESTACIJA!B41)","v":"nepoznato"}]
["napomena (period održavanja)",{"$f":"MANIFESTACIJA!B10","v":0}]
["1. faza",{"$f":"MANIFESTACIJA!B12","v":"Faza"}]
["Trajanje 1. faze",{"$f":"MANIFESTACIJA!B13","v":0}]
["2. faza",{"$f":"MANIFESTACIJA!B14","v":0}]
["Trajanje 2. faze",{"$f":"MANIFESTACIJA!B15","v":0}]
["3. faza",{"$f":"MANIFESTACIJA!B16","v":0}]
["Trajanje 3. faze",{"$f":"MANIFESTACIJA!B17","v":0}]
["4. faza",{"$f":"MANIFESTACIJA!B18","v":0}]
["Trajanje 4. faze",{"$f":"MANIFESTACIJA!B19","v":0}]
["5. faza",{"$f":"MANIFESTACIJA!B20","v":0}]
["Trajanje 5. faze",{"$f":"MANIFESTACIJA!B21","v":0}]
["6. faza",{"$f":"MANIFESTACIJA!B22","v":0}]
["Trajanje 6. faze",{"$f":"MANIFESTACIJA!B23","v":0}]
["7. faza",{"$f":"MANIFESTACIJA!B24","v":0}]
["Trajanje 7. faze",{"$f":"MANIFESTACIJA!B25","v":0}]
["8. faza",{"$f":"MANIFESTACIJA!B26","v":0}]
["Trajanje 8. faze",{"$f":"MANIFESTACIJA!B27","v":0}]
["Očekivani broj turista / posjetilaca",{"$f":"MANIFESTACIJA!B29","v":0}]
["Očekivano povećanje prometa u smještajnim objektima",{"$f":"MANIFESTACIJA!B30","v":0}]
["Očekivano povećanje prometa u ugostiteljstvu i trgovini",{"$f":"MANIFESTACIJA!B31","v":0}]
["ostalo",{"$f":"MANIFESTACIJA!B32","v":0}]
["Ukupan iznos potrebnih sredstava za realizaciju manifestacije / projekta",{"$f":"MANIFESTACIJA!B33","v":0}]
["Traženi iznos potpore od TZ Kvarnera",{"$f":"MANIFESTACIJA!B34","v":0}]
["Trošak 1",{"$f":"FINANCIJE!A3","v":0}]
[" Iznos 1",{"$f":"FINANCIJE!B3","v":0}]
["Trošak 2",{"$f":"FINANCIJE!A4","v":0}]
[" Iznos 2",{"$f":"FINANCIJE!B4","v":0}]
["Trošak 3",{"$f":"FINANCIJE!A5","v":0}]
[" Iznos 3",{"$f":"FINANCIJE!B5","v":0}]
["Trošak 4",{"$f":"FINANCIJE!A6","v":0}]
[" Iznos 4",{"$f":"FINANCIJE!B6","v":0}]
["Trošak 5",{"$f":"FINANCIJE!A7","v":0}]
[" Iznos 5",{"$f":"FINANCIJE!B7","v":0}]
["Trošak 6",{"$f":"FINANCIJE!A8","v":0}]
[" Iznos 6",{"$f":"FINANCIJE!B8","v":0}]
["Trošak 7",{"$f":"FINANCIJE!A9","v":0}]
[" Iznos 7",{"$f":"FINANCIJE!B9","v":0}]
["Trošak 8",{"$f":"FINANCIJE!A10","v":0}]
[" Iznos 8",{"$f":"FINANCIJE!B10","v":0}]
["Trošak 9",{"$f":"FINANCIJE!A11","v":0}]
[" Iznos 9",{"$f":"FINANCIJE!B11","v":0}]
["Trošak 10",{"$f":"FINANCIJE!A12","v":0}]
[" Iznos 10",{"$f":"FINANCIJE!B12","v":0}]
["UKUPNI TROŠKOVI REALIZACIJE ",{"$f":"FINANCIJE!B13","v":0}]
["Vlastita sredstva nositelja/organizatora",{"$f":"FINANCIJE!B15","v":0}]
["Suorganizator 1",{"$f":"FINANCIJE!A18","v":""}]
["Iznos u kn",{"$f":"FINANCIJE!B18","v":0}]
["Suorganizator 2",{"$f":"FINANCIJE!A19","v":""}]
["Iznos u kn",{"$f":"FINANCIJE!B19","v":0}]
["Suorganizator 3",{"$f":"FINANCIJE!A20","v":""}]
["Iznos u kn",{"$f":"FINANCIJE!B20","v":0}]
["UKUPNO suorganizatori",{"$f":"FINANCIJE!B21","v":0}]
["Uložena sredstva lokalne turističke zajednice\n",{"$f":"FINANCIJE!B22","v":0}]
["Uložena sredstva  HTZ ",{"$f":"FINANCIJE!B23","v":0}]
["Izvor1",{"$f":"FINANCIJE!A26","v":0}]
["Iznos1",{"$f":"FINANCIJE!B26","v":0}]
["Izvor2",{"$f":"FINANCIJE!A27","v":0}]
["Iznos2",{"$f":"FINANCIJE!B27","v":0}]
["Izvor3",{"$f":"FINANCIJE!A28","v":0}]
["Iznos3",{"$f":"FINANCIJE!B28","v":0}]
["Izvor4",{"$f":"FINANCIJE!A29","v":0}]
["Iznos4",{"$f":"FINANCIJE!B29","v":0}]
["Izvor5",{"$f":"FINANCIJE!A30","v":0}]
["Iznos5",{"$f":"FINANCIJE!B30","v":0}]
["Izvor6",{"$f":"FINANCIJE!A31","v":0}]
["Iznos6",{"$f":"FINANCIJE!B31","v":0}]
["Izvor7",{"$f":"FINANCIJE!A32","v":0}]
["Iznos7",{"$f":"FINANCIJE!B32","v":0}]
["Izvor8",{"$f":"FINANCIJE!A33","v":0}]
["Iznos8",{"$f":"FINANCIJE!B33","v":0}]
["UKUPNO GOSPODARSKI I DR. SUBJEKTI  ",{"$f":"FINANCIJE!B34","v":0}]
["davatelj potpore 1",{"$f":"FINANCIJE!A37","v":0}]
["Iznos 1",{"$f":"FINANCIJE!B37","v":0}]
["davatelj potpore 2",{"$f":"FINANCIJE!A38","v":0}]
["Iznos 2",{"$f":"FINANCIJE!B38","v":0}]
["davatelj potpore 3",{"$f":"FINANCIJE!A39","v":0}]
["Iznos 3",{"$f":"FINANCIJE!B39","v":0}]
["davatelj potpore 4",{"$f":"FINANCIJE!A40","v":0}]
["Iznos 4",{"$f":"FINANCIJE!B40","v":0}]
["davatelj potpore 5",{"$f":"FINANCIJE!A41","v":0}]
["Iznos 5",{"$f":"FINANCIJE!B41","v":0}]
["davatelj potpore 6",{"$f":"FINANCIJE!A42","v":0}]
["Iznos 6",{"$f":"FINANCIJE!B42","v":0}]
["davatelj potpore 7",{"$f":"FINANCIJE!A43","v":0}]
["Iznos 7",{"$f":"FINANCIJE!B43","v":0}]
["davatelj potpore 8",{"$f":"FINANCIJE!A44","v":0}]
["Iznos 8",{"$f":"FINANCIJE!B44","v":0}]
["davatelj potpore 9",{"$f":"FINANCIJE!A45","v":0}]
["Iznos 9",{"$f":"FINANCIJE!B45","v":0}]
["davatelj potpore 10",{"$f":"FINANCIJE!A46","v":0}]
["Iznos 10",{"$f":"FINANCIJE!B46","v":0}]
["UKUPNO  ",{"$f":"FINANCIJE!B47","v":0}]
["Pisana suglasnost lokalne TZ",{"$f":"OSTALO!B2","v":false}]
["Potvrda nadležne PU o nepostojanju duga",{"$f":"OSTALO!B3","v":false}]
["Napomena uz zahtjev",{"$f":"OSTALO!B5","v":0}]
["Mjesto",{"$f":"OSTALO!B11","v":0}]
["Datum",{"$f":"OSTALO!B12","v":"00:00:00"}]

{"sheet":"OSNOVNO","index":5,"n_rows":21,"n_cols":2,"rows_kept":21,"cut":false,"hidden":true,"merged":[]}
["Urudžbeni br.",{"$f":"NOSITELJ!B2","v":0}]
["Subregija ",{"$f":"NOSITELJ!B5","v":0}]
["Nositelj",{"$f":"NOSITELJ!B7","v":0}]
["Vrsta manifestacije",{"$f":"NOSITELJ!B4","v":0}]
["Naziv manifestacije",{"$f":"NOSITELJ!B6","v":0}]
["Poslovna banka",{"$f":"NOSITELJ!B20","v":0}]
["Broj žiro računa",{"$f":"NOSITELJ!B21","v":0}]
["Početak",{"$f":"IF(ISBLANK(MANIFESTACIJA!B8),\"nepoznato\",MANIFESTACIJA!B8)","v":"nepoznato"}]
["Završetak",{"$f":"IF(ISBLANK(MANIFESTACIJA!B9),\"nepoznato\",MANIFESTACIJA!B9)","v":"nepoznato"}]
["Napomena (period)",{"$f":"MANIFESTACIJA!B10","v":0}]
["Ukupan trošak manifestacije",{"$f":"MANIFESTACIJA!B33","v":0}]
["Traženi iznos potpore od TZ Kvarnera",{"$f":"MANIFESTACIJA!B34","v":0}]
["UKUPNI TROŠKOVI REALIZACIJE     ",{"$f":"FINANCIJE!B13","v":0}]
["Vlastita sredstva nositelja/organizatora",{"$f":"FINANCIJE!B15","v":0}]
["UKUPNO SUORGANIZATORI  ",{"$f":"FINANCIJE!B21","v":0}]
["Uložena sredstva lokalne turističke zajednice\n",{"$f":"FINANCIJE!B22","v":0}]
["Uložena sredstva  HTZ ",{"$f":"FINANCIJE!B23","v":0}]
["UKUPNO GOSPODARSKI I DR. SUBJEKTI  ",{"$f":"FINANCIJE!B34","v":0}]
["UKUPNO DAVATELJI DRŽAVNE POTPORE  ",{"$f":"FINANCIJE!B47","v":0}]
["Preporuka lokalne TZ",{"$f":"OSTALO!B2","v":false}]
["Potvrda PU",{"$f":"OSTALO!B3","v":false}]

{"sheet":"TMP","index":6,"n_rows":32,"n_cols":2,"rows_kept":32,"cut":false,"hidden":true,"merged":[]}
["Banke","Subregija"]
["Banco Popolare Croatia d.d.","Crikvenička rivijera"]
["Banka Kovanica d.d.","Gorski kotar"]
["Banka splitsko-dalmatinska d.d.","Opatijska rivijera"]
["BKS bank d.d.","Otok Cres"]
["Centar banka d.d.","Otok Krk"]
["Croatia banka d.d.","Otok Lošinj"]
["Erste & Steiermärkische Bank d.d.","Otok Rab"]
["Hrvatska poštanska banka d.d.","Rijeka i riječki prsten"]
["Hypo Alpe-Adria-Bank d.d.","Rivijera Novi Vinodolski"]
["Imex banka d.d."]
["Istarska kreditna banka Umag d.d."]
["Jadranska banka d.d."]
["Karlovačka banka d.d."]
["KentBank d.d."]
["Kreditna banka Zagreb d.d."]
["Nava banka d.d."]
["OTP banka Hrvatska d.d."]
["Partner banka d.d."]
["Podravska banka d.d."]
["Primorska banka d.d."]
["Privredna banka Zagreb d.d."]
["Raiffeisenbank Austria d.d. Zagreb"]
["Samoborska banka d.d. Samobor"]
["Sberbank d.d."]
["Slatinska banka d.d. Slatina"]
["Société Générale Splitska banka d.d."]
["Tesla štedna banka d.d."]
["Vaba d.d. banka Varaždin"]
["Veneto banka d.d."]
["Zagrebačka banka d.d."]
["Štedbanka d.d."]